[Event "Titled Tuesday Blitz May 31 Early 2022"]
[White "Sismeiro, Miguel"]
[Black "Sjugirov, Sanan"]
[WhiteFideId "1950975"]
[BlackFideId "4189302"]
[WhiteElo "2031"]
[BlackElo "2602"]
[Result "0-1"]
[Round "09"]
[TimeControl "180+1"]
[Date "2022.05.31"]
[WhiteClock "0:00:03"]
[BlackClock "0:01:29"]

1. c4 {[%clk 0:02:59]}  g6 {[%clk 0:02:59]} 2. Nf3 {[%clk 0:02:56]}  Bg7 {[%clk 0:03:00]} 3. d4 {[%clk 0:02:57]}  d6 {[%clk 0:02:59]} 4. Nc3 {[%clk 0:02:51]}  Nf6 {[%clk 0:03:00]} 5. g3 {[%clk 0:02:41]}  Bf5 {[%clk 0:02:59]} 6. Bg2 {[%clk 0:02:40]}  Ne4 {[%clk 0:02:59]} 7. O-O {[%clk 0:02:04]}  Nxc3 {[%clk 0:02:58]} 8. bxc3 {[%clk 0:02:05]}  Be4 {[%clk 0:02:54]} 9. Bh3 {[%clk 0:01:38]}  O-O {[%clk 0:02:48]} 10. Nd2 {[%clk 0:01:38]}  Bc6 {[%clk 0:02:47]} 11. e4 {[%clk 0:01:35]}  e5 {[%clk 0:02:46]} 12. d5 {[%clk 0:01:22]}  Bd7 {[%clk 0:02:46]} 13. Bg2 {[%clk 0:01:20]}  Na6 {[%clk 0:02:43]} 14. Nb3 {[%clk 0:01:19]}  b6 {[%clk 0:02:42]} 15. a4 {[%clk 0:01:18]}  f5 {[%clk 0:02:36]} 16. f3 {[%clk 0:01:12]}  Qe8 {[%clk 0:02:29]} 17. a5 {[%clk 0:01:11]}  Ba4 {[%clk 0:02:28]} 18. Be3 {[%clk 0:01:03]}  Nc5 {[%clk 0:02:24]} 19. Bxc5 {[%clk 0:01:01]}  bxc5 {[%clk 0:02:24]} 20. Qc2 {[%clk 0:00:57]}  Rb8 {[%clk 0:02:24]} 21. Rfb1 {[%clk 0:00:57]}  h5 {[%clk 0:02:20]} 22. Qa2 {[%clk 0:00:55]}  Bd7 {[%clk 0:02:19]} 23. Nd2 {[%clk 0:00:48]}  Bh6 {[%clk 0:02:18]} 24. Rxb8 {[%clk 0:00:44]}  Qxb8 {[%clk 0:02:19]} 25. Rb1 {[%clk 0:00:45]}  Qd8 {[%clk 0:02:19]} 26. Nf1 {[%clk 0:00:33]}  Bc8 {[%clk 0:02:15]} 27. a6 {[%clk 0:00:24]}  h4 {[%clk 0:02:14]} 28. Rb8 {[%clk 0:00:19]}  Qg5 {[%clk 0:02:03]} 29. Qa5 {[%clk 0:00:11]}  Qe7 {[%clk 0:01:57]} 30. Qa2 {[%clk 0:00:10]}  fxe4 {[%clk 0:01:57]} 31. fxe4 {[%clk 0:00:10]}  Qg5 {[%clk 0:01:56]} 32. Qe2 {[%clk 0:00:09]}  Qf6 {[%clk 0:01:49]} 33. Rxc8 {[%clk 0:00:08]}  Rxc8 {[%clk 0:01:48]} 34. Bh3 {[%clk 0:00:08]}  Rf8 {[%clk 0:01:48]} 35. Be6+ {[%clk 0:00:09]}  Kg7 {[%clk 0:01:49]} 36. Kg2 {[%clk 0:00:09]}  Bg5 {[%clk 0:01:44]} 37. Bg4 {[%clk 0:00:03]}  Bc1 {[%clk 0:01:43]} 38. Be6 {[%clk 0:00:03]}  Rb8 {[%clk 0:01:43]} 39. Kh3 {[%clk 0:00:02]}  Rb2 {[%clk 0:01:43]} 40. Qd1 {[%clk 0:00:02]}  Bh6 {[%clk 0:01:40]} 41. Bg4 {[%clk 0:00:02]}  Qf2 {[%clk 0:01:39]} 42. Qf3 {[%clk 0:00:01]}  hxg3 {[%clk 0:01:34]} 43. hxg3 {[%clk 0:00:01]}  Qxf3 {[%clk 0:01:31]} 44. Bxf3 {[%clk 0:00:02]}  Ra2 {[%clk 0:01:32]} 45. Kg4 {[%clk 0:00:02]}  Rxa6 {[%clk 0:01:32]} 46. Nh2 {[%clk 0:00:02]}  Ra2 {[%clk 0:01:32]} 47. Kh3 {[%clk 0:00:02]}  a5 {[%clk 0:01:32]} 48. Ng4 {[%clk 0:00:03]}  Rb2 {[%clk 0:01:31]} 49. Bd1 {[%clk 0:00:03]}  Rd2 {[%clk 0:01:30]} 50. Ba4 {[%clk 0:00:03]}  Ra2 {[%clk 0:01:29]} 51. Bb5 {[%clk 0:00:03]}  a4 {[%clk 0:01:30]} 52. Kh4 {[%clk 0:00:03]}  a3 {[%clk 0:01:29]} 0-1


[Site "https://www.chess.com"]

[Event "Titled Tuesday Blitz May 31 Early 2022"]
[White "Sokolovsky, Yahli"]
[Black "Hirneise, Jens"]
[WhiteFideId "2820242"]
[BlackFideId "24614734"]
[WhiteElo "1770"]
[BlackElo "2359"]
[Result "0-1"]
[Round "09"]
[TimeControl "180+1"]
[Date "2022.06.01"]
[WhiteClock "0:00:03"]
[BlackClock "0:00:10"]

1. b3 {[%clk 0:03:00]}  d5 {[%clk 0:02:57]} 2. Bb2 {[%clk 0:03:01]}  Bg4 {[%clk 0:02:57]} 3. h3 {[%clk 0:02:59]}  Bf5 {[%clk 0:02:54]} 4. d4 {[%clk 0:02:57]}  Nf6 {[%clk 0:02:51]} 5. Nf3 {[%clk 0:02:58]}  h6 {[%clk 0:02:49]} 6. e3 {[%clk 0:02:58]}  e6 {[%clk 0:02:48]} 7. Bd3 {[%clk 0:02:58]}  Bxd3 {[%clk 0:02:45]} 8. Qxd3 {[%clk 0:02:59]}  Nbd7 {[%clk 0:02:38]} 9. Nbd2 {[%clk 0:02:59]}  Bd6 {[%clk 0:02:34]} 10. Ne5 {[%clk 0:02:56]}  c6 {[%clk 0:02:28]} 11. O-O {[%clk 0:02:56]}  Qc7 {[%clk 0:02:27]} 12. f4 {[%clk 0:02:56]}  O-O {[%clk 0:02:26]} 13. Kh1 {[%clk 0:02:46]}  Ne8 {[%clk 0:02:09]} 14. g4 {[%clk 0:02:34]}  f6 {[%clk 0:02:05]} 15. Ng6 {[%clk 0:02:34]}  Rf7 {[%clk 0:02:05]} 16. c4 {[%clk 0:02:33]}  Nf8 {[%clk 0:02:04]} 17. c5 {[%clk 0:02:27]}  Be7 {[%clk 0:02:02]} 18. f5 {[%clk 0:02:15]}  Nxg6 {[%clk 0:01:57]} 19. fxe6 {[%clk 0:02:12]}  Rf8 {[%clk 0:01:45]} 20. Qxg6 {[%clk 0:02:11]}  Qc8 {[%clk 0:01:46]} 21. Nf3 {[%clk 0:01:29]}  Qxe6 {[%clk 0:01:44]} 22. Nh4 {[%clk 0:01:21]}  Kh8 {[%clk 0:01:18]} 23. Rae1 {[%clk 0:00:58]}  Qf7 {[%clk 0:01:10]} 24. e4 {[%clk 0:00:52]}  Kg8 {[%clk 0:01:05]} 25. exd5 {[%clk 0:00:37]}  Qxd5+ {[%clk 0:00:56]} 26. Kg1 {[%clk 0:00:37]}  Qf7 {[%clk 0:00:35]} 27. Bc1 {[%clk 0:00:25]}  Nc7 {[%clk 0:00:28]} 28. Bxh6 {[%clk 0:00:24]}  Rfe8 {[%clk 0:00:21]} 29. Bf4 {[%clk 0:00:12]}  Nd5 {[%clk 0:00:18]} 30. Bd2 {[%clk 0:00:11]}  b6 {[%clk 0:00:16]} 31. cxb6 {[%clk 0:00:09]}  axb6 {[%clk 0:00:16]} 32. a4 {[%clk 0:00:10]}  c5 {[%clk 0:00:14]} 33. Qxf7+ {[%clk 0:00:03]}  Kxf7 {[%clk 0:00:14]} 34. dxc5 {[%clk 0:00:02]}  Bxc5+ {[%clk 0:00:15]} 35. Kg2 {[%clk 0:00:02]}  Be3 {[%clk 0:00:13]} 36. Bxe3 {[%clk 0:00:01]}  Nxe3+ {[%clk 0:00:13]} 37. Kf2 {[%clk 0:00:02]}  Nxf1 {[%clk 0:00:13]} 38. Rxf1 {[%clk 0:00:02]}  Rac8 {[%clk 0:00:12]} 39. Nf5 {[%clk 0:00:03]}  Rc2+ {[%clk 0:00:12]} 40. Kg1 {[%clk 0:00:03]}  Ree2 {[%clk 0:00:11]} 41. g5 {[%clk 0:00:02]}  Rg2+ {[%clk 0:00:09]} 42. Kh1 {[%clk 0:00:03]}  Rh2+ {[%clk 0:00:10]} 0-1


[Site "https://www.chess.com"]

[Event "Titled Tuesday Blitz May 31 Early 2022"]
[White "Tong, Hai Anh"]
[Black "Martins, Bruno Andre Leite"]
[WhiteFideId "12412805"]
[BlackFideId "1942255"]
[WhiteElo "1467"]
[BlackElo "2153"]
[Result "1/2-1/2"]
[Round "09"]
[TimeControl "180+1"]
[Date "2022.06.01"]
[WhiteClock "0:00:05"]
[BlackClock "0:00:02"]

1. d4 {[%clk 0:03:00]}  e6 {[%clk 0:02:57]} 2. c4 {[%clk 0:03:01]}  b6 {[%clk 0:02:56]} 3. Nc3 {[%clk 0:03:02]}  Bb7 {[%clk 0:02:57]} 4. Nf3 {[%clk 0:03:03]}  Nf6 {[%clk 0:02:55]} 5. g3 {[%clk 0:03:03]}  Ne4 {[%clk 0:02:53]} 6. Bd2 {[%clk 0:03:00]}  Nxd2 {[%clk 0:02:43]} 7. Qxd2 {[%clk 0:03:01]}  Bxf3 {[%clk 0:02:19]} 8. exf3 {[%clk 0:03:01]}  d5 {[%clk 0:02:18]} 9. cxd5 {[%clk 0:02:59]}  exd5 {[%clk 0:02:17]} 10. Bg2 {[%clk 0:03:00]}  Bb4 {[%clk 0:02:07]} 11. O-O {[%clk 0:02:56]}  O-O {[%clk 0:02:01]} 12. f4 {[%clk 0:02:54]}  c6 {[%clk 0:01:57]} 13. Rac1 {[%clk 0:02:48]}  Nd7 {[%clk 0:01:52]} 14. a3 {[%clk 0:02:44]}  Bxc3 {[%clk 0:01:51]} 15. Rxc3 {[%clk 0:02:44]}  Rc8 {[%clk 0:01:46]} 16. Rfc1 {[%clk 0:02:42]}  Nb8 {[%clk 0:01:38]} 17. b4 {[%clk 0:02:38]}  b5 {[%clk 0:01:28]} 18. Qa2 {[%clk 0:02:38]}  Qd6 {[%clk 0:01:26]} 19. Bxd5 {[%clk 0:02:34]}  Rcd8 {[%clk 0:01:19]} 20. Bxc6 {[%clk 0:02:34]}  Nxc6 {[%clk 0:01:18]} 21. Rxc6 {[%clk 0:02:35]}  Qxd4 {[%clk 0:01:19]} 22. R6c5 {[%clk 0:02:28]}  a6 {[%clk 0:01:18]} 23. Rc6 {[%clk 0:02:26]}  Rd6 {[%clk 0:01:16]} 24. Rxd6 {[%clk 0:02:26]}  Qxd6 {[%clk 0:01:15]} 25. Qe2 {[%clk 0:02:25]}  g6 {[%clk 0:01:13]} 26. Qe5 {[%clk 0:02:21]}  Rd8 {[%clk 0:01:11]} 27. Rc3 {[%clk 0:02:15]}  h5 {[%clk 0:01:01]} 28. Kg2 {[%clk 0:01:48]}  Qb6 {[%clk 0:00:50]} 29. Rc7 {[%clk 0:01:21]}  Qd6 {[%clk 0:00:46]} 30. Rc8 {[%clk 0:01:06]}  Qd7 {[%clk 0:00:38]} 31. Rxd8+ {[%clk 0:01:03]}  Qxd8 {[%clk 0:00:39]} 32. f5 {[%clk 0:01:03]}  Qa8+ {[%clk 0:00:36]} 33. Kg1 {[%clk 0:01:03]}  Qc6 {[%clk 0:00:31]} 34. f6 {[%clk 0:00:47]}  Qc1+ {[%clk 0:00:19]} 35. Kg2 {[%clk 0:00:47]}  Qc6+ {[%clk 0:00:19]} 36. f3 {[%clk 0:00:39]}  Qc2+ {[%clk 0:00:17]} 37. Kh3 {[%clk 0:00:39]}  Qc8+ {[%clk 0:00:14]} 38. g4 {[%clk 0:00:39]}  hxg4+ {[%clk 0:00:13]} 39. fxg4 {[%clk 0:00:40]}  Qd7 {[%clk 0:00:10]} 40. Kh4 {[%clk 0:00:27]}  Qd8 {[%clk 0:00:07]} 41. Qf4 {[%clk 0:00:23]}  Qd1 {[%clk 0:00:02]} 42. Kg5 {[%clk 0:00:13]}  Qd5+ {[%clk 0:00:01]} 43. Kh6 {[%clk 0:00:11]}  Qd8 {[%clk 0:00:02]} 44. Kg5 {[%clk 0:00:06]}  Qd5+ {[%clk 0:00:01]} 45. Kh4 {[%clk 0:00:07]}  Qd1 {[%clk 0:00:02]} 46. Qh6 {[%clk 0:00:04]}  Qe1+ {[%clk 0:00:02]} 47. Kh3 {[%clk 0:00:02]}  Qf1+ {[%clk 0:00:01]} 48. Kg3 {[%clk 0:00:03]}  Qg1+ {[%clk 0:00:01]} 49. Kf3 {[%clk 0:00:02]}  Qf1+ {[%clk 0:00:02]} 50. Kg3 {[%clk 0:00:03]}  Qg1+ {[%clk 0:00:02]} 51. Kf3 {[%clk 0:00:03]}  Qh1+ {[%clk 0:00:02]} 52. Kg3 {[%clk 0:00:03]}  Qe1+ {[%clk 0:00:02]} 53. Kg2 {[%clk 0:00:04]}  Qe2+ {[%clk 0:00:02]} 54. Kg1 {[%clk 0:00:04]}  Qe1+ {[%clk 0:00:02]} 55. Kg2 {[%clk 0:00:05]}  Qe2+ {[%clk 0:00:02]} 56. Kg3 {[%clk 0:00:05]}  Qe1+ {[%clk 0:00:02]} 57. Kg2 {[%clk 0:00:05]} 1/2-1/2


[Site "https://www.chess.com"]

[Event "Titled Tuesday Blitz May 31 Early 2022"]
[White "Turutin, Alexander"]
[Black "Domingo Nunez, Ruben"]
[WhiteFideId "4180623"]
[BlackFideId "22245570"]
[WhiteElo "2402"]
[BlackElo "2376"]
[Result "0-1"]
[Round "09"]
[TimeControl "180+1"]
[Date "2022.06.01"]
[WhiteClock "0:00:16"]
[BlackClock "0:00:11"]

1. e4 {[%clk 0:02:56]}  Nc6 {[%clk 0:02:57]} 2. Nf3 {[%clk 0:02:55]}  d5 {[%clk 0:02:55]} 3. exd5 {[%clk 0:02:51]}  Qxd5 {[%clk 0:02:56]} 4. Nc3 {[%clk 0:02:51]}  Qa5 {[%clk 0:02:57]} 5. Bb5 {[%clk 0:02:47]}  Bd7 {[%clk 0:02:56]} 6. O-O {[%clk 0:02:45]}  a6 {[%clk 0:02:54]} 7. Bxc6 {[%clk 0:02:31]}  Bxc6 {[%clk 0:02:55]} 8. d4 {[%clk 0:02:32]}  O-O-O {[%clk 0:02:55]} 9. Ne5 {[%clk 0:02:31]}  Be8 {[%clk 0:02:52]} 10. a3 {[%clk 0:02:18]}  f6 {[%clk 0:02:47]} 11. Qg4+ {[%clk 0:02:17]}  Kb8 {[%clk 0:02:45]} 12. Nc4 {[%clk 0:02:17]}  Qh5 {[%clk 0:02:34]} 13. Qf4 {[%clk 0:01:38]}  g5 {[%clk 0:02:24]} 14. Qe3 {[%clk 0:01:25]}  Nh6 {[%clk 0:02:24]} 15. Na5 {[%clk 0:01:10]}  Ng4 {[%clk 0:02:10]} 16. Qg3 {[%clk 0:01:08]}  Rxd4 {[%clk 0:02:09]} 17. h3 {[%clk 0:01:07]}  Ne5 {[%clk 0:02:06]} 18. Be3 {[%clk 0:01:06]}  Rd7 {[%clk 0:02:03]} 19. b4 {[%clk 0:01:05]}  b6 {[%clk 0:01:19]} 20. Rab1 {[%clk 0:00:56]}  Qh4 {[%clk 0:01:16]} 21. Qh2 {[%clk 0:00:46]}  e6 {[%clk 0:01:13]} 22. f4 {[%clk 0:00:30]}  gxf4 {[%clk 0:00:51]} 23. Bxf4 {[%clk 0:00:30]}  bxa5 {[%clk 0:00:38]} 24. bxa5+ {[%clk 0:00:26]}  Kc8 {[%clk 0:00:38]} 25. g3 {[%clk 0:00:25]}  Rg8 {[%clk 0:00:32]} 26. Qg2 {[%clk 0:00:25]}  Rd4 {[%clk 0:00:13]} 27. gxh4 {[%clk 0:00:23]}  Rxg2+ {[%clk 0:00:13]} 28. Kxg2 {[%clk 0:00:24]}  Bc6+ {[%clk 0:00:14]} 29. Kh2 {[%clk 0:00:23]}  Bd6 {[%clk 0:00:13]} 30. Ne2 {[%clk 0:00:20]}  Re4 {[%clk 0:00:12]} 31. Ng3 {[%clk 0:00:20]}  Rc4 {[%clk 0:00:11]} 32. Bxe5 {[%clk 0:00:16]}  Rxc2+ {[%clk 0:00:11]} 33. Kg1 {[%clk 0:00:16]}  Rg2+ {[%clk 0:00:11]} 0-1


[Site "https://www.chess.com"]

[Event "Titled Tuesday Blitz May 31 Early 2022"]
[White "Vokhidov, Shamsiddin"]
[Black "Dubov, Daniil"]
[WhiteFideId "14204223"]
[BlackFideId "24126055"]
[WhiteElo "2611"]
[BlackElo "2791"]
[Result "1-0"]
[Round "09"]
[TimeControl "180+1"]
[Date "2022.05.31"]
[WhiteClock "0:00:23"]
[BlackClock "0:00:04"]

1. e4 {[%clk 0:03:00]}  e5 {[%clk 0:02:57]} 2. Nf3 {[%clk 0:03:01]}  Nc6 {[%clk 0:02:57]} 3. Bb5 {[%clk 0:03:01]}  a6 {[%clk 0:02:57]} 4. Ba4 {[%clk 0:03:01]}  Nf6 {[%clk 0:02:57]} 5. O-O {[%clk 0:03:02]}  Be7 {[%clk 0:02:57]} 6. d3 {[%clk 0:03:01]}  b5 {[%clk 0:02:57]} 7. Bb3 {[%clk 0:03:01]}  d6 {[%clk 0:02:56]} 8. a3 {[%clk 0:03:02]}  O-O {[%clk 0:02:53]} 9. Nc3 {[%clk 0:03:02]}  Rb8 {[%clk 0:02:53]} 10. Be3 {[%clk 0:02:59]}  h6 {[%clk 0:02:46]} 11. h3 {[%clk 0:02:58]}  Re8 {[%clk 0:02:45]} 12. a4 {[%clk 0:02:42]}  b4 {[%clk 0:02:30]} 13. Nd5 {[%clk 0:02:42]}  Na5 {[%clk 0:02:31]} 14. Nxf6+ {[%clk 0:02:39]}  Bxf6 {[%clk 0:02:30]} 15. Ba2 {[%clk 0:02:40]}  b3 {[%clk 0:02:25]} 16. Bxb3 {[%clk 0:02:36]}  Nxb3 {[%clk 0:02:24]} 17. cxb3 {[%clk 0:02:37]}  d5 {[%clk 0:01:32]} 18. Bc5 {[%clk 0:02:28]}  dxe4 {[%clk 0:01:24]} 19. dxe4 {[%clk 0:02:29]}  Qxd1 {[%clk 0:01:23]} 20. Rfxd1 {[%clk 0:02:30]}  Rxb3 {[%clk 0:01:23]} 21. Ba3 {[%clk 0:02:28]}  Bb7 {[%clk 0:00:37]} 22. Rac1 {[%clk 0:02:27]}  Rb6 {[%clk 0:00:37]} 23. Rc4 {[%clk 0:01:57]}  Rc6 {[%clk 0:00:36]} 24. Rdc1 {[%clk 0:01:51]}  Rxc4 {[%clk 0:00:30]} 25. Rxc4 {[%clk 0:01:52]}  Rd8 {[%clk 0:00:30]} 26. Kf1 {[%clk 0:01:44]}  Rd7 {[%clk 0:00:26]} 27. Ke2 {[%clk 0:01:44]}  g6 {[%clk 0:00:23]} 28. Ne1 {[%clk 0:01:44]}  Bg5 {[%clk 0:00:14]} 29. Nd3 {[%clk 0:01:43]}  f5 {[%clk 0:00:14]} 30. f3 {[%clk 0:01:41]}  fxe4 {[%clk 0:00:13]} 31. fxe4 {[%clk 0:01:42]}  a5 {[%clk 0:00:13]} 32. Nxe5 {[%clk 0:01:41]}  Ba6 {[%clk 0:00:09]} 33. Nxd7 {[%clk 0:01:40]}  Bxc4+ {[%clk 0:00:09]} 34. Kf3 {[%clk 0:01:40]}  Bb3 {[%clk 0:00:09]} 35. Nc5 {[%clk 0:01:40]}  Bc2 {[%clk 0:00:09]} 36. Ne6 {[%clk 0:01:22]}  c6 {[%clk 0:00:08]} 37. Nxg5 {[%clk 0:00:56]}  hxg5 {[%clk 0:00:09]} 38. Be7 {[%clk 0:00:55]}  Bxa4 {[%clk 0:00:07]} 39. Kg4 {[%clk 0:00:48]}  Bc2 {[%clk 0:00:05]} 40. e5 {[%clk 0:00:46]}  Be4 {[%clk 0:00:05]} 41. g3 {[%clk 0:00:42]}  Bf5+ {[%clk 0:00:05]} 42. Kxg5 {[%clk 0:00:42]}  Kf7 {[%clk 0:00:06]} 43. g4 {[%clk 0:00:37]}  Bxg4 {[%clk 0:00:03]} 44. hxg4 {[%clk 0:00:26]}  Kxe7 {[%clk 0:00:04]} 45. Kxg6 {[%clk 0:00:27]}  c5 {[%clk 0:00:03]} 46. g5 {[%clk 0:00:27]}  c4 {[%clk 0:00:03]} 47. Kh7 {[%clk 0:00:26]}  a4 {[%clk 0:00:04]} 48. g6 {[%clk 0:00:26]}  a3 {[%clk 0:00:03]} 49. bxa3 {[%clk 0:00:23]}  c3 {[%clk 0:00:03]} 50. g7 {[%clk 0:00:23]}  c2 {[%clk 0:00:04]} 51. g8=Q {[%clk 0:00:24]}  c1=Q {[%clk 0:00:05]} 52. Qg7+ {[%clk 0:00:22]}  Ke8 {[%clk 0:00:05]} 53. Qg6+ {[%clk 0:00:20]}  Ke7 {[%clk 0:00:05]} 54. Qf6+ {[%clk 0:00:19]}  Ke8 {[%clk 0:00:05]} 55. Qe6+ {[%clk 0:00:20]}  Kf8 {[%clk 0:00:04]} 56. Qh6+ {[%clk 0:00:20]}  Qxh6+ {[%clk 0:00:02]} 57. Kxh6 {[%clk 0:00:21]}  Kf7 {[%clk 0:00:03]} 58. Kg5 {[%clk 0:00:21]}  Ke6 {[%clk 0:00:04]} 59. Kf4 {[%clk 0:00:22]}  Kd5 {[%clk 0:00:04]} 60. Kf5 {[%clk 0:00:23]} 1-0


[Site "https://www.chess.com"]

[Event "Titled Tuesday Blitz May 31 Early 2022"]
[White "Wagner, Dennis"]
[Black "Tymrakiewicz, Rafal"]
[WhiteFideId "24650684"]
[BlackFideId "1108832"]
[WhiteElo "2355"]
[BlackElo "2205"]
[Result "1-0"]
[Round "09"]
[TimeControl "180+1"]
[Date "2022.06.01"]
[WhiteClock "0:00:21"]
[BlackClock "0:00:01"]

1. e4 {[%clk 0:02:56]}  Nf6 {[%clk 0:02:54]} 2. Nc3 {[%clk 0:02:56]}  d5 {[%clk 0:02:54]} 3. exd5 {[%clk 0:02:55]}  Nxd5 {[%clk 0:02:54]} 4. Qf3 {[%clk 0:02:49]}  Nb4 {[%clk 0:02:33]} 5. Bc4 {[%clk 0:02:46]}  e6 {[%clk 0:02:34]} 6. Bb3 {[%clk 0:02:44]}  N8c6 {[%clk 0:02:34]} 7. Nge2 {[%clk 0:02:43]}  Na5 {[%clk 0:02:32]} 8. Ba4+ {[%clk 0:02:17]}  Bd7 {[%clk 0:02:31]} 9. a3 {[%clk 0:02:17]}  Nd5 {[%clk 0:02:30]} 10. Bxd7+ {[%clk 0:02:02]}  Qxd7 {[%clk 0:02:30]} 11. O-O {[%clk 0:02:03]}  Be7 {[%clk 0:02:18]} 12. b4 {[%clk 0:01:44]}  Nc6 {[%clk 0:02:17]} 13. Bb2 {[%clk 0:01:44]}  Ne5 {[%clk 0:02:01]} 14. Qe4 {[%clk 0:01:33]}  Ng6 {[%clk 0:01:59]} 15. Nxd5 {[%clk 0:01:30]}  Qxd5 {[%clk 0:01:48]} 16. Qxd5 {[%clk 0:01:27]}  exd5 {[%clk 0:01:49]} 17. Bxg7 {[%clk 0:01:24]}  Rg8 {[%clk 0:01:49]} 18. Bc3 {[%clk 0:01:07]}  Nh4 {[%clk 0:01:18]} 19. g3 {[%clk 0:01:05]}  O-O-O {[%clk 0:01:03]} 20. Nd4 {[%clk 0:00:59]}  Bf6 {[%clk 0:01:00]} 21. f3 {[%clk 0:00:57]}  Rge8 {[%clk 0:00:52]} 22. gxh4 {[%clk 0:00:54]}  Bxd4+ {[%clk 0:00:12]} 23. Bxd4 {[%clk 0:00:52]}  Re2 {[%clk 0:00:13]} 24. Rf2 {[%clk 0:00:52]}  Rg8+ {[%clk 0:00:12]} 25. Kf1 {[%clk 0:00:53]}  Re6 {[%clk 0:00:12]} 26. h5 {[%clk 0:00:39]}  b6 {[%clk 0:00:12]} 27. Re1 {[%clk 0:00:37]}  Rxe1+ {[%clk 0:00:10]} 28. Kxe1 {[%clk 0:00:37]}  Rg1+ {[%clk 0:00:10]} 29. Rf1 {[%clk 0:00:33]}  Rg2 {[%clk 0:00:10]} 30. Be5 {[%clk 0:00:34]}  Kd7 {[%clk 0:00:10]} 31. Bg3 {[%clk 0:00:34]}  c5 {[%clk 0:00:10]} 32. bxc5 {[%clk 0:00:32]}  bxc5 {[%clk 0:00:09]} 33. Rh1 {[%clk 0:00:24]}  Ke6 {[%clk 0:00:07]} 34. Bf2 {[%clk 0:00:24]}  d4 {[%clk 0:00:06]} 35. Kf1 {[%clk 0:00:25]}  Rg5 {[%clk 0:00:06]} 36. h4 {[%clk 0:00:22]}  Rxh5 {[%clk 0:00:05]} 37. Rg1 {[%clk 0:00:23]}  f6 {[%clk 0:00:01]} 38. Rg8 {[%clk 0:00:23]}  Kf5 {[%clk 0:00:01]} 39. Ra8 {[%clk 0:00:19]}  Rh6 {[%clk 0:00:01]} 40. Rxa7 {[%clk 0:00:19]}  Ke5 {[%clk 0:00:02]} 41. Ra5 {[%clk 0:00:19]}  Kd5 {[%clk 0:00:02]} 42. d3 {[%clk 0:00:18]}  Rg6 {[%clk 0:00:02]} 43. c4+ {[%clk 0:00:18]}  dxc3 {[%clk 0:00:02]} 44. Rxc5+ {[%clk 0:00:18]}  Kd6 {[%clk 0:00:03]} 45. Rxc3 {[%clk 0:00:19]}  f5 {[%clk 0:00:03]} 46. a4 {[%clk 0:00:18]}  f4 {[%clk 0:00:04]} 47. a5 {[%clk 0:00:19]}  Rg7 {[%clk 0:00:04]} 48. a6 {[%clk 0:00:19]}  Rg8 {[%clk 0:00:03]} 49. a7 {[%clk 0:00:20]}  Ra8 {[%clk 0:00:03]} 50. Rb3 {[%clk 0:00:20]}  Kd5 {[%clk 0:00:01]} 51. Rb8 {[%clk 0:00:21]} 1-0


[Site "https://www.chess.com"]

[Event "Titled Tuesday Blitz May 31 Early 2022"]
[White "Xu, Yi"]
[Black "Vidit, Santosh Gujrathi"]
[WhiteFideId "8605564"]
[BlackFideId "5029465"]
[WhiteElo "2471"]
[BlackElo "2654"]
[Result "0-1"]
[Round "09"]
[TimeControl "180+1"]
[Date "2022.05.31"]
[WhiteClock "0:00:10"]
[BlackClock "0:00:27"]

1. e4 {[%clk 0:03:00]}  c5 {[%clk 0:03:00]} 2. Nf3 {[%clk 0:03:01]}  e6 {[%clk 0:02:59]} 3. d4 {[%clk 0:03:01]}  cxd4 {[%clk 0:03:00]} 4. Nxd4 {[%clk 0:03:02]}  Nc6 {[%clk 0:02:59]} 5. Nc3 {[%clk 0:03:02]}  Qc7 {[%clk 0:02:59]} 6. Be3 {[%clk 0:03:01]}  a6 {[%clk 0:02:59]} 7. g4 {[%clk 0:03:01]}  b5 {[%clk 0:02:56]} 8. Nxc6 {[%clk 0:03:00]}  Qxc6 {[%clk 0:02:54]} 9. Qd2 {[%clk 0:02:57]}  Bb7 {[%clk 0:02:54]} 10. O-O-O {[%clk 0:02:40]}  Nf6 {[%clk 0:02:54]} 11. f3 {[%clk 0:02:38]}  d6 {[%clk 0:02:46]} 12. g5 {[%clk 0:02:28]}  Nd7 {[%clk 0:02:46]} 13. Ne2 {[%clk 0:02:25]}  Ne5 {[%clk 0:02:45]} 14. Nd4 {[%clk 0:02:25]}  Qc7 {[%clk 0:02:45]} 15. h4 {[%clk 0:02:18]}  Be7 {[%clk 0:02:45]} 16. h5 {[%clk 0:02:14]}  d5 {[%clk 0:02:38]} 17. f4 {[%clk 0:01:53]}  Nc4 {[%clk 0:02:38]} 18. Bxc4 {[%clk 0:01:53]}  dxc4 {[%clk 0:02:39]} 19. g6 {[%clk 0:01:35]}  Bxe4 {[%clk 0:02:36]} 20. gxf7+ {[%clk 0:01:34]}  Kxf7 {[%clk 0:02:37]} 21. Rhg1 {[%clk 0:01:30]}  Bf6 {[%clk 0:02:35]} 22. Qe2 {[%clk 0:01:13]}  c3 {[%clk 0:02:33]} 23. b3 {[%clk 0:01:10]}  Qe7 {[%clk 0:02:32]} 24. Kb1 {[%clk 0:01:08]}  Rhd8 {[%clk 0:02:31]} 25. h6 {[%clk 0:01:07]}  g6 {[%clk 0:02:30]} 26. Nf3 {[%clk 0:01:05]}  Bf5 {[%clk 0:02:16]} 27. Ng5+ {[%clk 0:01:01]}  Kg8 {[%clk 0:02:15]} 28. Nf3 {[%clk 0:00:59]}  a5 {[%clk 0:02:05]} 29. Ne5 {[%clk 0:00:57]}  a4 {[%clk 0:01:44]} 30. Rxd8+ {[%clk 0:00:56]}  Qxd8 {[%clk 0:01:40]} 31. b4 {[%clk 0:00:49]}  Qd6 {[%clk 0:01:30]} 32. a3 {[%clk 0:00:43]}  Qd5 {[%clk 0:01:17]} 33. Ka1 {[%clk 0:00:43]}  Rd8 {[%clk 0:01:16]} 34. Bc1 {[%clk 0:00:32]}  Qe4 {[%clk 0:01:08]} 35. Qxe4 {[%clk 0:00:30]}  Bxe4 {[%clk 0:01:09]} 36. Rg3 {[%clk 0:00:29]}  Rc8 {[%clk 0:00:42]} 37. Kb1 {[%clk 0:00:29]}  Bf5 {[%clk 0:00:41]} 38. Be3 {[%clk 0:00:26]}  Bxe5 {[%clk 0:00:27]} 39. fxe5 {[%clk 0:00:26]}  Rc4 {[%clk 0:00:28]} 40. Bg5 {[%clk 0:00:22]}  Kf7 {[%clk 0:00:28]} 41. Bf6 {[%clk 0:00:20]}  Ke8 {[%clk 0:00:28]} 42. Bg5 {[%clk 0:00:17]}  Kd7 {[%clk 0:00:28]} 43. Bf6 {[%clk 0:00:18]}  Kc6 {[%clk 0:00:28]} 44. Bg5 {[%clk 0:00:18]}  Kd5 {[%clk 0:00:29]} 45. Bf6 {[%clk 0:00:19]}  Ke4 {[%clk 0:00:29]} 46. Rd3 {[%clk 0:00:15]}  Kf4 {[%clk 0:00:27]} 47. Rd7 {[%clk 0:00:15]}  g5 {[%clk 0:00:27]} 48. Rb7 {[%clk 0:00:11]}  Re4 {[%clk 0:00:26]} 49. Rxb5 {[%clk 0:00:10]}  Re1+ {[%clk 0:00:26]} 50. Ka2 {[%clk 0:00:10]}  Bxc2 {[%clk 0:00:27]} 0-1


[Site "https://www.chess.com"]